fUST/lending_fUST_20250605
["ID","MTS","AMOUNT","RATE_DAILY","PERIOD"]
[364271179,1749054634035,-440.0,0.00016712,2]
[364271180,1749054634048,-278.36793314,0.00016712,2]
[364271181,1749054634061,-440.0,0.00016712,2]
[364271182,1749054634074,-495.26,0.00016712,2]
[364271183,1749054634088,-440.0,0.00016712,2]
[364271184,1749054634101,-521.04,0.00016712,2]
[364271185,1749054634114,-420.0,0.00016712,2]
[364271186,1749054634128,-440.0,0.00016712,2]
[364271187,1749054634140,-440.0,0.00016712,2]
[364271188,1749054634152,-813.17,0.00016712,2]
[364271189,1749054634164,-440.0,0.00016712,2]
[364271190,1749054634178,-440.0,0.00016712,2]
[364271191,1749054634189,-440.0,0.00016712,2]
[364271192,1749054634201,-548.87559801,0.00016712,2]
[364271193,1749054634215,-440.0,0.00016712,2]
[364271194,1749054634228,-440.0,0.00016712,2]
[364271195,1749054634241,-505.9,0.00016712,2]
[364271196,1749054634252,-440.0,0.00016712,2]
[364271197,1749054634264,-440.0,0.00016712,2]
[364271198,1749054634275,-464.03,0.00016712,2]
[364271199,1749054634286,-1158.49,0.00016712,2]
[364271200,1749054634297,-420.0,0.00016712,2]
[364271201,1749054634309,-420.0,0.00016712,2]
[364271202,1749054634319,-684.7,0.00016712,2]
[364271203,1749054634331,-501.71,0.00016712,2]
[364271204,1749054634343,-440.0,0.00016986,2]
[364271205,1749054634355,-440.0,0.00016986,2]
[364271206,1749054634368,-440.0,0.00016986,2]
[364271207,1749054634379,-440.0,0.00016986,2]
[364271208,1749054634393,-440.0,0.00016986,2]
[364271209,1749054634409,-112.69120216,0.00016986,2]
[364271215,1749054638630,-430.0,0.00016438,2]
[364271216,1749054638640,-327.30879784,0.00016986,2]
[364271217,1749054638649,-495.26,0.00016986,2]
[364271218,1749054638658,-440.0,0.00016986,2]
[364271219,1749054638668,-521.04,0.00016986,2]
[364271220,1749054638678,-440.0,0.00016986,2]
[364271221,1749054638687,-440.0,0.00016986,2]
[364271222,1749054638696,-813.17,0.00016986,2]
[364271223,1749054638706,-440.0,0.00016986,2]
[364271224,1749054638715,-440.0,0.00016986,2]
[364271225,1749054638725,-440.0,0.00016986,2]
[364271226,1749054638735,-440.0,0.00016986,2]
[364271227,1749054638746,-440.0,0.00016986,2]
[364271228,1749054638755,-440.0,0.00016986,2]
[364271229,1749054638766,-440.0,0.00016986,2]
[364271230,1749054638775,-464.03,0.00016986,2]
[364271231,1749054638785,-1158.49,0.00016986,2]
[364271233,1749054638804,-684.7,0.00016986,2]
[364271234,1749054638816,-501.71,0.00016986,2]
[364271235,1749054638825,-420.0,0.00017062,2]
[364271236,1749054638835,-656.8678885,0.00017226,2]
[364271237,1749054638845,-440.0,0.0001726,2]
[364271238,1749054638855,-440.0,0.0001726,2]
[364271239,1749054638866,-440.0,0.0001726,2]
[364271240,1749054638877,-440.0,0.0001726,2]
[364271241,1749054638887,-440.0,0.0001726,2]
[364271242,1749054638897,-440.0,0.0001726,2]
[364271243,1749054638907,-495.26,0.0001726,2]
[364271244,1749054638917,-440.0,0.0001726,2]
[364271245,1749054638927,-521.04,0.0001726,2]
[364271246,1749054638937,-440.0,0.0001726,2]
[364271247,1749054638947,-440.0,0.0001726,2]
[364271248,1749054638957,-813.17,0.0001726,2]
[364271249,1749054638967,-440.0,0.0001726,2]
[364271250,1749054638976,-440.0,0.0001726,2]
[364271251,1749054638986,-440.0,0.0001726,2]
[364271252,1749054638996,-440.0,0.0001726,2]
[364271253,1749054639006,-440.0,0.0001726,2]
[364271254,1749054639016,-440.0,0.0001726,2]
[364271255,1749054639025,-440.0,0.0001726,2]
[364271256,1749054639036,-464.03,0.0001726,2]
[364271257,1749054639045,-1158.49,0.0001726,2]
[364271258,1749054639055,-684.7,0.0001726,2]
[364271259,1749054639065,-426.46814255,0.0001726,2]
[364271260,1749054639083,-75.24185745,0.0001726,2]
[364271261,1749054639093,-1136.17715278,0.000174,2]
[364271262,1749054639102,-1136.17715273,0.000174,2]
[364271263,1749054639112,-1136.17715273,0.00017452,2]
[364271264,1749054639122,-521.99466349,0.00017534,2]
[364271265,1749054639134,-440.0,0.00017534,2]
[364271266,1749054639144,-440.0,0.00017534,2]
[364271267,1749054639153,-440.0,0.00017534,2]
[364271268,1749054639163,-440.0,0.00017534,2]
[364271269,1749054639173,-440.0,0.00017534,2]
[364271270,1749054639183,-495.26,0.00017534,2]
[364271271,1749054639192,-440.0,0.00017534,2]
[364271272,1749054639202,-521.04,0.00017534,2]
[364271273,1749054639212,-440.0,0.00017534,2]
[364271274,1749054639222,-440.0,0.00017534,2]
[364271275,1749054639232,-813.17,0.00017534,2]
[364271276,1749054639242,-440.0,0.00017534,2]
[364271277,1749054639252,-440.0,0.00017534,2]
[364271278,1749054639262,-440.0,0.00017534,2]
[364271279,1749054639272,-440.0,0.00017534,2]
[364271280,1749054639282,-440.0,0.00017534,2]
[364271281,1749054639291,-440.0,0.00017534,2]
[364271282,1749054639302,-440.0,0.00017534,2]
[364271284,1749054639312,-464.03,0.00017534,2]
[364271286,1749054639322,-1158.49,0.00017534,2]
[364271287,1749054639331,-684.7,0.00017534,2]
[364271288,1749054639340,-501.71,0.00017534,2]
[364271289,1749054639350,-2069.66563921,0.000176,2]
[364271290,1749054639359,-1136.17715273,0.00017728,2]
[364271291,1749054639369,-440.0,0.00017808,2]
[364271292,1749054639379,-413.55546602,0.00017808,2]
[364271293,1749054639389,-440.0,0.00017808,2]
[364271294,1749054639398,-440.0,0.00017808,2]
[364271295,1749054639408,-440.0,0.00017808,2]
[364271296,1749054639417,-495.26,0.00017808,2]
[364271297,1749054639427,-440.0,0.00017808,2]
[364271298,1749054639436,-521.04,0.00017808,2]
[364271299,1749054639446,-440.0,0.00017808,2]
[364271300,1749054639456,-535.24756497,0.00017808,2]
[364271301,1749054639465,-813.17,0.00017808,2]
[364271302,1749054639475,-440.0,0.00017808,2]
[364271303,1749054639485,-440.0,0.00017808,2]
[364271304,1749054639494,-440.0,0.00017808,2]
[364271305,1749054639504,-440.0,0.00017808,2]
[364271306,1749054639513,-440.0,0.00017808,2]
[364271307,1749054639524,-440.0,0.00017808,2]
[364271308,1749054639534,-440.0,0.00017808,2]
[364271309,1749054639543,-464.03,0.00017808,2]
[364271310,1749054639553,-1158.49,0.00017808,2]
[364271311,1749054639562,-684.7,0.00017808,2]
[364271312,1749054639572,-501.71,0.00017808,2]
[364271313,1749054639581,-2293.18639834,0.00018,2]
[364271314,1749054639591,-1866.90299408,0.00018,2]
[364271315,1749054639600,-1136.17715273,0.00018003,2]
[364271316,1749054639610,-500.0,0.00018081,2]
[364271317,1749054639619,-500.0,0.00018081,2]
[364271318,1749054639629,-175.20065219,0.00018081,2]
[364271319,1749054639639,-500.0,0.00018081,2]
[364271320,1749054639648,-500.0,0.00018081,2]
[364271321,1749054639657,-500.0,0.00018081,2]
[364271322,1749054639668,-500.0,0.00018081,2]
[364271323,1749054639678,-500.0,0.00018081,2]
[364271324,1749054639687,-500.0,0.00018081,2]
[364271325,1749054639696,-422.81750125,0.00018081,2]
[364271326,1749054639706,-500.0,0.00018081,2]
[364271327,1749054639715,-426.81926375,0.00018081,2]
[364271328,1749054639724,-500.0,0.00018081,2]
[364271329,1749054639733,-500.0,0.00018081,2]
[364271330,1749054639743,-500.0,0.00018081,2]
[364271331,1749054639753,-500.0,0.00018081,2]
[364271332,1749054639762,-500.0,0.00018081,2]
[364271333,1749054639773,-500.0,0.00018081,2]
[364271334,1749054639782,-500.0,0.00018081,2]
[364271335,1749054639792,-500.0,0.00018081,2]
[364271336,1749054639802,-500.0,0.00018081,2]
[364271337,1749054639812,-280.75811633,0.00018081,2]
[364271338,1749054639821,-500.0,0.00018081,2]
[364271339,1749054639831,-500.0,0.00018081,2]
[364271340,1749054639841,-500.0,0.00018081,2]
[364271341,1749054639850,-231.6131373,0.00018081,2]
[364271342,1749054639863,-500.0,0.00018081,2]
[364271343,1749054639873,-500.0,0.00018081,2]
[364271344,1749054639884,-500.0,0.00018081,2]
[364271345,1749054639893,-500.0,0.00018081,2]
[364271346,1749054639903,-500.0,0.00018081,2]
[364271347,1749054639913,-500.0,0.00018081,2]
[364271348,1749054639923,-500.0,0.00018081,2]
[364271349,1749054639932,-202.6086431,0.00018081,2]
[364271350,1749054639942,-500.0,0.00018081,2]
[364271351,1749054639951,-500.0,0.00018081,2]
[364271352,1749054639961,-500.0,0.00018081,2]
[364271353,1749054639971,-500.0,0.00018081,2]
[364271354,1749054639981,-500.0,0.00018081,2]
[364271355,1749054639991,-500.0,0.00018081,2]
[364271356,1749054640001,-500.0,0.00018081,2]
[364271357,1749054640011,-193.30600634,0.00018081,2]
[364271358,1749054640022,-500.0,0.00018081,2]
[364271359,1749054640031,-500.0,0.00018081,2]
[364271360,1749054640044,-500.0,0.00018081,2]
[364271361,1749054640055,-500.0,0.00018081,2]
[364271362,1749054640064,-500.0,0.00018081,2]
[364271363,1749054640075,-500.0,0.00018081,2]
[364271364,1749054640084,-500.0,0.00018081,2]
[364271365,1749054640094,-500.0,0.00018081,2]
[364271366,1749054640103,-500.0,0.00018081,2]
[364271367,1749054640113,-500.0,0.00018081,2]
[364271368,1749054640123,-500.0,0.00018081,2]
[364271369,1749054640135,-500.0,0.00018081,2]
[364271370,1749054640144,-500.0,0.00018081,2]
[364271371,1749054640154,-500.0,0.00018081,2]
[364271372,1749054640164,-500.0,0.00018081,2]
[364271373,1749054640174,-500.0,0.00018081,2]
[364271374,1749054640183,-500.0,0.00018081,2]
[364271375,1749054640193,-500.0,0.00018081,2]
[364271376,1749054640203,-500.0,0.00018081,2]
[364271377,1749054640215,-500.0,0.00018081,2]
[364271378,1749054640226,-500.0,0.00018081,2]
[364271379,1749054640237,-500.0,0.00018081,2]
[364271380,1749054640248,-500.0,0.00018081,2]
[364271381,1749054640258,-500.0,0.00018081,2]
[364271382,1749054640268,-500.0,0.00018081,2]
[364271383,1749054640278,-500.0,0.00018081,2]
[364271384,1749054640287,-440.0,0.00018082,2]
[364271385,1749054640298,-440.0,0.00018082,2]
[364271386,1749054640308,-440.0,0.00018082,2]
[364271388,1749054640317,-348.18008281,0.00018082,2]
[364271389,1749054640326,-495.26,0.00018082,2]
[364271392,1749054640337,-237.61,0.00018082,2]
[364271393,1749054640347,-521.04,0.00018082,2]
[364271394,1749054640358,-445.08587285,0.00018082,2]
[364271395,1749054640370,-813.17,0.00018082,2]
[364271396,1749054640381,-440.0,0.00018082,2]
[364271397,1749054640391,-440.0,0.00018082,2]
[364271398,1749054640400,-410.0,0.00018082,2]
[364271399,1749054640411,-440.0,0.00018082,2]
[364271400,1749054640421,-440.0,0.00018082,2]
[364271401,1749054640430,-440.0,0.00018082,2]
[364271402,1749054640440,-440.0,0.00018082,2]
[364271403,1749054640450,-464.03,0.00018082,2]
[364271404,1749054640459,-1158.49,0.00018082,2]
[364271405,1749054640468,-684.7,0.00018082,2]
[364271406,1749054640479,-501.71,0.00018082,2]
[364271407,1749054640489,-223.52181891,0.00018254,2]
[364271409,1749054640499,-1136.17715273,0.00018279,2]
[364271411,1749054640509,-67688.86957296,0.00018352,2]
[364271412,1749054640520,-15650.94759879,0.00018352,3]
[364271413,1749054640530,-212.90465545,0.00018354,3]
[364271414,1749054640539,-430.0,0.00018355,2]
[364271415,1749054640550,-430.0,0.00018355,2]
[364271416,1749054640560,-430.0,0.00018355,2]
[364271417,1749054640569,-443.71294305,0.00018355,2]
[364271418,1749054640579,-430.0,0.00018355,2]
[364271419,1749054640589,-430.0,0.00018355,2]
[364271421,1749054640600,-430.0,0.00018355,2]
[364271423,1749054640609,-522.36518735,0.00018355,2]
[364271425,1749054640619,-230.98783582,0.00018355,2]
[364271427,1749054640629,-430.0,0.00018355,2]
[364271429,1749054640639,-430.0,0.00018355,2]
[364271431,1749054640649,-430.0,0.00018355,2]
[364271433,1749054640659,-430.0,0.00018355,2]
[364271435,1749054640670,-430.0,0.00018355,2]
[364271437,1749054640680,-520.0,0.00018355,2]
[364271439,1749054640690,-430.0,0.00018355,2]
[364271441,1749054640700,-430.0,0.00018355,2]
[364271443,1749054640709,-430.0,0.00018355,2]
[364271445,1749054640720,-430.0,0.00018355,2]
[364271447,1749054640730,-430.0,0.00018355,2]
[364271449,1749054640739,-430.0,0.00018355,2]
[364271451,1749054640748,-430.0,0.00018355,2]
[364271453,1749054640758,-784.55,0.00018355,2]
[364271455,1749054640770,-440.0,0.00018355,2]
[364271457,1749054640779,-440.0,0.00018355,2]
[364271459,1749054640789,-430.0,0.00018355,2]
[364271460,1749054640799,-430.0,0.00018355,2]
[364271461,1749054640808,-430.0,0.00018355,2]
[364271462,1749054640817,-430.0,0.00018355,2]
[364271463,1749054640827,-440.0,0.00018355,2]
[364271464,1749054640836,-430.0,0.00018355,2]
[364271465,1749054640845,-430.0,0.00018355,2]
[364271466,1749054640854,-430.0,0.00018355,2]
[364271467,1749054640863,-440.0,0.00018355,2]
[364271468,1749054640872,-430.0,0.00018355,2]
[364271469,1749054640881,-430.0,0.00018355,2]
[364271470,1749054640891,-165.86,0.00018356,2]
[364271471,1749054640900,-440.0,0.00018356,2]
[364271472,1749054640910,-440.0,0.00018356,2]
[364271473,1749054640919,-495.26,0.00018356,2]
[364271474,1749054640929,-521.04,0.00018356,2]
[364271475,1749054640938,-813.17,0.00018356,2]
[364271476,1749054640947,-440.0,0.00018356,2]
[364271477,1749054640957,-435.57014939,0.00018356,2]
[364271478,1749054640966,-517.92486513,0.00018356,2]
[364271479,1749054640975,-440.0,0.00018356,2]
[364271480,1749054640984,-440.0,0.00018356,2]
[364271481,1749054640994,-440.0,0.00018356,2]
[364271482,1749054641003,-464.03,0.00018356,2]
[364271483,1749054641012,-1158.49,0.00018356,2]
[364271484,1749054641023,-684.7,0.00018356,2]
[364271485,1749054641033,-501.71,0.00018356,2]
[364271486,1749054641043,-1136.17715273,0.00018555,2]
[364271487,1749054641052,-784.55,0.00018629,2]
[364271488,1749054641061,-440.0,0.00018629,2]
[364271489,1749054641070,-440.0,0.00018629,2]
[364271490,1749054641079,-440.0,0.00018629,2]
[364271491,1749054641089,-440.0,0.00018629,2]
[364271492,1749054641098,-524.91034557,0.0001863,2]
[364271493,1749054641107,-286.78604359,0.0001863,2]
[364271494,1749054641116,-495.26,0.0001863,2]
[364271495,1749054641126,-521.04,0.0001863,2]
[364271497,1749054641140,-813.17,0.0001863,2]
[364271498,1749054641150,-440.0,0.0001863,2]
[364271499,1749054641159,-377.3,0.0001863,2]
[364271501,1749054641168,-440.0,0.0001863,2]
[364271503,1749054641179,-440.0,0.0001863,2]
[364271504,1749054641188,-464.03,0.0001863,2]
[364271505,1749054641198,-1158.49,0.0001863,2]
[364271507,1749054641209,-684.7,0.0001863,2]
[364271509,1749054641219,-501.71,0.0001863,2]
[364271511,1749054641228,-403.0,0.00018662,2]
[364271512,1749054641237,-160.0,0.00018806,2]
[364271514,1749054641247,-652.0881075,0.00018806,2]
[364271516,1749054641256,-160.0,0.00018806,2]
[364271517,1749054641266,-160.0,0.00018811,2]
[364271518,1749054641278,-229.45591648,0.00018811,2]
[364271519,1749054641288,-423.69433488,0.00018811,2]
[364271520,1749054641298,-160.0,0.00018811,2]
[364271521,1749054641307,-12672.94222187,0.00018815,2]
[364271522,1749054641316,-1136.17715273,0.00018831,2]
[364271523,1749054641326,-842.5625,0.00018903,3]
[364271524,1749054641336,-430.0,0.00018903,2]
[364271525,1749054641346,-430.0,0.00018903,2]
[364271526,1749054641355,-784.55,0.00018903,2]
[364271528,1749054641364,-440.0,0.00018903,2]
[364271530,1749054641374,-440.0,0.00018903,2]
[364271532,1749054641384,-430.0,0.00018903,2]
[364271534,1749054641393,-440.0,0.00018903,2]
[364271536,1749054641403,-413.57330831,0.00018903,2]
[364271538,1749054641412,-440.0,0.00018903,2]
[364271540,1749054641422,-495.26,0.00018904,2]
[364271542,1749054641432,-521.04,0.00018904,2]
[364271544,1749054641442,-813.17,0.00018904,2]
[364271547,1749054641451,-440.0,0.00018904,2]
[364271549,1749054641461,-440.0,0.00018904,2]
[364271551,1749054641470,-440.0,0.00018904,2]
[364271552,1749054641480,-464.03,0.00018904,2]
[364271554,1749054641489,-1158.49,0.00018904,2]
[364271556,1749054641499,-684.7,0.00018904,2]
[364271558,1749054641509,-501.71,0.00018904,2]
[364271560,1749054641521,-317.01306785,0.00019087,2]
[364271562,1749054641530,-1136.17715273,0.00019107,2]
[364271564,1749054641540,-160.0,0.00019172,2]
[364271566,1749054641550,-784.55,0.00019177,2]
[364271568,1749054641559,-440.0,0.00019177,2]
[364271570,1749054641569,-440.0,0.00019177,2]
[364271572,1749054641579,-440.0,0.00019177,2]
[364271574,1749054641589,-440.0,0.00019177,2]
[364271576,1749054641598,-495.26,0.00019178,2]
[364271579,1749054641608,-521.04,0.00019178,2]
[364271581,1749054641618,-813.17,0.00019178,2]
[364271582,1749054641627,-440.0,0.00019178,2]
[364271584,1749054641637,-440.0,0.00019178,2]
[364271599,1749054641760,-583.30743819,0.00019178,2]
[364271601,1749054641788,-464.03,0.00019178,2]
[364271603,1749054641798,-1158.49,0.00019178,2]
[364271605,1749054641808,-684.7,0.00019178,2]
[364271608,1749054641818,-501.71,0.00019178,2]
[364271609,1749054641828,-500.0,0.00019178,2]
[364271612,1749054641839,-500.0,0.00019178,2]
[364271614,1749054641849,-500.0,0.00019178,2]
[364271616,1749054641858,-500.0,0.00019178,2]
[364271618,1749054641868,-500.0,0.00019178,2]
[364271620,1749054641878,-500.0,0.00019178,2]
[364271622,1749054641888,-500.0,0.00019178,2]
[364271624,1749054641898,-500.0,0.00019178,2]
[364271626,1749054641908,-500.0,0.00019178,2]
[364271628,1749054641917,-500.0,0.00019178,2]
[364271630,1749054641926,-500.0,0.00019178,2]
[364271631,1749054641936,-500.0,0.00019178,2]
[364271634,1749054641946,-500.0,0.00019178,2]
[364271635,1749054641956,-500.0,0.00019178,2]
[364271637,1749054641965,-500.0,0.00019178,2]
[364271640,1749054641978,-500.0,0.00019178,2]
[364271642,1749054641988,-500.0,0.00019178,2]
[364271644,1749054641998,-500.0,0.00019178,2]
[364271646,1749054642008,-500.0,0.00019178,2]
[364271648,1749054642018,-500.0,0.00019178,2]
[364271650,1749054642028,-500.0,0.00019178,2]
[364271652,1749054642039,-500.0,0.00019178,2]
[364271654,1749054642048,-500.0,0.00019178,2]
[364271656,1749054642058,-500.0,0.00019178,2]
[364271657,1749054642068,-500.0,0.00019178,2]
[364271660,1749054642078,-500.0,0.00019178,2]
[364271662,1749054642088,-500.0,0.00019178,2]
[364271664,1749054642098,-500.0,0.00019178,2]
[364271666,1749054642107,-500.0,0.00019178,2]
[364271668,1749054642117,-500.0,0.00019178,2]
[364271670,1749054642127,-500.0,0.00019178,2]
[364271672,1749054642139,-161.24572,0.00019178,2]
[364271674,1749054642148,-1136.17715273,0.00019383,2]
[364271676,1749054642157,-784.55,0.00019451,2]
[364271677,1749054642167,-440.0,0.00019451,2]
[364271680,1749054642178,-440.0,0.00019451,2]
[364271682,1749054642188,-440.0,0.00019451,2]
[364271683,1749054642198,-440.0,0.00019451,2]
[364271686,1749054642209,-495.26,0.00019452,2]
[364271688,1749054642219,-521.04,0.00019452,2]
[364271690,1749054642228,-813.17,0.00019452,2]
[364271692,1749054642238,-365.22810196,0.00019452,2]
[364271694,1749054642248,-440.0,0.00019452,2]
[364271696,1749054642258,-464.03,0.00019452,2]
[364271698,1749054642267,-1158.49,0.00019452,2]
[364271700,1749054642282,-684.7,0.00019452,2]
[364271703,1749054642292,-501.71,0.00019452,2]
[364271705,1749054642302,-316.24199888,0.00019518,2]
[364271706,1749054642312,-1136.17715273,0.00019659,2]
[364271709,1749054642322,-784.55,0.00019725,2]
[364271711,1749054642331,-440.0,0.00019725,2]
[364271713,1749054642343,-440.0,0.00019725,2]
[364271715,1749054642353,-440.0,0.00019725,2]
[364271717,1749054642363,-440.0,0.00019725,2]
[364271719,1749054642372,-495.26,0.00019726,2]
[364271721,1749054642383,-521.04,0.00019726,2]
[364271723,1749054642392,-813.17,0.00019726,2]
[364271725,1749054642401,-440.0,0.00019726,2]
[364271727,1749054642413,-464.03,0.00019726,2]
[364271729,1749054642423,-1158.49,0.00019726,2]
[364271731,1749054642433,-684.7,0.00019726,2]
[364271733,1749054642444,-501.71,0.00019726,2]
[364271735,1749054642453,-187.188,0.00019814,2]
[364271737,1749054642463,-1136.17715273,0.00019934,2]
[364271739,1749054642472,-784.55,0.00019999,2]
[364271741,1749054642482,-440.0,0.00019999,2]
[364271743,1749054642491,-440.0,0.00019999,2]
[364271745,1749054642501,-440.0,0.00019999,2]
[364271747,1749054642510,-440.0,0.00019999,2]
[364271749,1749054642521,-500.0,0.00019999,2]
[364271751,1749054642531,-438.34353865,0.00019999,2]
[364271753,1749054642540,-500.0,0.00019999,2]
[364271755,1749054642551,-500.0,0.00019999,2]
[364271757,1749054642560,-500.0,0.00019999,2]
[364271759,1749054642570,-500.0,0.00019999,2]
[364271761,1749054642579,-500.0,0.00019999,2]
[364271763,1749054642588,-500.0,0.00019999,2]
[364271765,1749054642597,-500.0,0.00019999,2]
[364271767,1749054642607,-500.0,0.00019999,2]
[364271769,1749054642616,-500.0,0.00019999,2]
[364271771,1749054642626,-500.0,0.00019999,2]
[364271773,1749054642635,-500.0,0.00019999,2]
[364271775,1749054642645,-500.0,0.00019999,2]
[364271777,1749054642654,-495.26,0.0002,2]
[364271779,1749054642664,-521.04,0.0002,2]
[364271781,1749054642674,-813.17,0.0002,2]
[364271783,1749054642683,-2505.80921069,0.0002,2]
[364271785,1749054642692,-30721.0407761,0.0002,2]
[364271787,1749054642701,-440.0,0.0002,2]
[364271788,1749054642710,-464.03,0.0002,2]
[364271790,1749054642720,-1158.49,0.0002,2]
[364271792,1749054642730,-684.7,0.0002,2]
[364271794,1749054642739,-501.71,0.0002,2]
[364271796,1749054642748,-1100.0,0.00020068,2]
[364271798,1749054642758,-1136.17715273,0.0002021,2]
[364271800,1749054642767,-495.26,0.00020273,2]
[364271802,1749054642778,-784.55,0.00020273,2]
[364271805,1749054642788,-521.04,0.00020273,2]
[364271807,1749054642798,-440.0,0.00020273,2]
[364271808,1749054642808,-170.41,0.00020273,2]
[364271811,1749054642818,-813.17,0.00020273,2]
[364271813,1749054642828,-440.0,0.00020273,2]
[364271815,1749054642838,-489.51,0.00020273,2]
[364271817,1749054642847,-464.03,0.00020273,2]
[364271818,1749054642857,-1158.49,0.00020273,2]
[364271820,1749054642867,-440.0,0.00020273,2]
[364271822,1749054642876,-684.7,0.00020273,2]
[364271824,1749054642885,-501.71,0.00020273,2]
[364271826,1749054642895,-800.0,0.0002039,2]
[364271828,1749054642904,-1136.17715273,0.00020486,3]
[364271830,1749054642913,-500.0,0.00020547,2]
[364271832,1749054642923,-495.26,0.00020547,2]
[364271834,1749054642932,-784.55,0.00020547,2]
[364271836,1749054642941,-521.04,0.00020547,2]
[364271838,1749054642953,-440.0,0.00020547,2]
[364271840,1749054642962,-813.17,0.00020547,2]
[364271842,1749054642971,-440.0,0.00020547,2]
[364271844,1749054642981,-464.03,0.00020547,2]
[364271846,1749054642990,-1158.49,0.00020547,2]
[364271848,1749054643000,-295.15571333,0.00020547,2]
[364271850,1749054643009,-684.7,0.00020547,2]
[364271852,1749054643019,-501.71,0.00020547,2]
[364271854,1749054643030,-500.0,0.00020548,2]
[364271856,1749054643039,-500.0,0.00020548,2]
[364271858,1749054643049,-500.0,0.00020548,2]
[364271860,1749054643059,-500.0,0.00020548,2]
[364271862,1749054643068,-500.0,0.00020548,2]
[364271864,1749054643077,-500.0,0.00020548,2]
[364271866,1749054643086,-500.0,0.00020548,2]
[364271868,1749054643096,-500.0,0.00020548,2]
[364271870,1749054643106,-311.4242042,0.00020548,2]
[364271872,1749054643116,-500.0,0.00020548,2]
[364271876,1749054643125,-500.0,0.00020548,2]
[364271879,1749054643137,-500.0,0.00020548,2]
[364271881,1749054643146,-509.29,0.000206,2]
[364271884,1749054643155,-1370.56,0.000206,2]
[364271886,1749054643165,-1136.17715273,0.00020762,3]
[364271888,1749054643174,-283.83885896,0.0002077,2]
[364271890,1749054643185,-600.0,0.00020794,2]
[364271892,1749054643194,-495.26,0.00020821,2]
[364271894,1749054643204,-784.55,0.00020821,2]
[364271896,1749054643214,-521.04,0.00020821,2]
[364271898,1749054643224,-440.0,0.00020821,2]
[364271900,1749054643234,-813.17,0.00020821,2]
[364271902,1749054643243,-440.0,0.00020821,2]
[364271904,1749054643252,-464.03,0.00020821,2]
[364271906,1749054643262,-1158.49,0.00020821,2]
[364271908,1749054643272,-684.7,0.00020821,2]
[364271910,1749054643281,-501.71,0.00020821,2]
[364271912,1749054643291,-380.96569639,0.00021,2]
[364271914,1749054643301,-1136.17715273,0.00021038,4]
[364271916,1749054643310,-229.39,0.00021095,3]
[364271918,1749054643321,-495.26,0.00021095,2]
[364271921,1749054643330,-784.55,0.00021095,2]
[364271923,1749054643340,-521.04,0.00021095,2]
[364271926,1749054643350,-440.0,0.00021095,2]
[364271928,1749054643359,-813.17,0.00021095,2]
[364271930,1749054643368,-440.0,0.00021095,2]
[364271932,1749054643379,-464.03,0.00021095,2]